Cogmind - Beta 13 @@@ ROGUE MODE // 2024.04.05 @ 13:35:23 Player: SunShine214 Result: Destroyed by P-60 Hacker with Shock Rifle Performance ------------- Evolutions (3) 1500 Regions Visited (6) 1200 Robots Destroyed (104) 520 Value Destroyed (2632) 2632 Prototype IDs (12) 240 Alien Tech Used (0) 0 Bonus (186) 186 TOTAL SCORE: 6278 Bonus ------- High Alert Combat Kills 186 Cogmind --------- Core Integrity 0/700 Matter 300/300 Energy 98/100 System Corruption 7% Temperature Cool (0) Movement Core (50) Location -7/Factory Parts ------- > --- POWER (1) -------- (None) > --- PROPULSION (3) --- (None) > --- UTILITY (5) ------ (None) > --- WEAPON (4) ------- (None) > --- INVENTORY (5) ---- Thermal Generator Improved Terrain Scan Processor Peak State ------------ > --- POWER ------------ Light Nuclear Core > --- PROPULSION ------- Carbon-fiber Leg Carbon-fiber Leg VSS Leg > --- UTILITY ---------- Improved Heat Sink Medium Storage Unit Medium Armor Plating Hardened Medium Armor Plating > --- WEAPON ----------- Pulse Rifle Enhanced Autogun Enhanced Autogun Flak Cannon > --- INVENTORY -------- Armored Treads Thermal Generator Improved Sensor Array Improved Terrain Scan Processor Improved Terrain Scan Processor Hardened Light Armor Plating Advanced Beam Cannon Rocket Launcher Improved Datajack [Rating: 37] Favorites ----------- Power Light Nuclear Core Engine Ion Engine Power Core Light Nuclear Core Propulsion Improved Treads Treads Improved Treads Leg Aluminum Leg Hover Unit Backup Propulsion I Flight Unit Improved Flight Unit Utility Medium Storage Unit Device Thermal Generator Storage Medium Storage Unit Protection Improved Utility Shielding Weapon Pulse Rifle Energy Gun Pulse Rifle Energy Cannon EM Pulse Cannon Ballistic Gun Enhanced Autogun Ballistic Cannon Flak Cannon Launcher Grenade Launcher Special Melee Weapon Improved Datajack Build | -11 -10 -9 -8 -7 -7 -7 ------- Run | Yrd Mat Mat Mat Fac Was Fac Slots Evolved 6 | . . 2 2 2 . . Power . | . . . . . . . Propulsion 1 | . . 1 . . . . Utility 3 | . . 1 1 1 . . Weapon 2 | . . . 1 1 . . Parts Attached 109 | 6 11 46 39 1 1 5 Power 14 | 1 1 5 7 . . . Engine 7 | 1 1 4 1 . . . Core 7 | . . 1 6 . . . Reactor . | . . . . . . . Propulsion 25 | 2 . 12 9 . . 2 Treads 12 | . . 11 . . . 1 Leg 12 | 2 . . 9 . . 1 Wheel . | . . . . . . . Hover . | . . . . . . . Flight 1 | . . 1 . . . . Utility 17 | 1 3 3 9 . . 1 Device 5 | . 1 1 2 . . 1 Storage 6 | 1 2 . 3 . . . Processor . | . . . . . . . Hackware . | . . . . . . . Protection 6 | . . 2 4 . . . Artifact . | . . . . . . . Weapon 53 | 2 7 26 14 1 1 2 Energy Gun 28 | 2 3 15 7 . . 1 Energy Cannon 3 | . . 1 2 . . . Ballistic Gun 7 | . 2 1 3 . . 1 Ballistic Cannon 1 | . . . . 1 . . Launcher 11 | . 2 7 2 . . . Special Weapon . | . . . . . . . Impact Weapon . | . . . . . . . Slashing Weapon . | . . . . . . . Piercing Weapon . | . . . . . . . Special Melee Weapon 3 | . . 2 . . 1 . Unidentified Prototypes 9 | . . 5 2 . . 2 Corrupted Parts 1 | . . . 1 . . . System Corruption 8 | . . . 8 . . . Parts Lost 19 | . 1 2 6 . 6 4 Power 2 | . . 1 . . 1 . Propulsion 5 | . . . 3 . 1 1 Utility 4 | . . 1 . . 2 1 Weapon 8 | . 1 . 3 . 2 2 Highest Loss Streak 4 | . 1 1 2 . 3 4 To Critical Strikes . | . . . . . . . Average Slot Usage (%) 90 | . 98 98 95 92 49 17 Engine 3 | . 14 2 2 . . . Core 5 | . . 8 6 7 4 . Treads 12 | . . 30 3 . . 6 Leg 13 | . 28 1 20 23 15 . Device 9 | . 12 10 8 7 5 6 Storage 9 | . 14 11 9 7 4 . Protection 10 | . . 10 17 15 3 . Energy Gun 13 | . 16 16 11 7 . 3 Ballistic Gun 7 | . 9 4 11 15 8 . Naked Turns 42 | . . . . . 24 18 Heaviest Build 51 | 14 51 36 45 46 35 5 Greatest Support 69 | 20 20 69 69 42 42 20 Greatest Overweight (x) 8 | 1 2 8 3 1 . . Average Overweight (x) . | . . . . 1 . . Largest Inventory Capacity 20 | 8 20 10 10 10 10 5 Average Capacity 10 | 7 14 10 10 10 8 5 Most Carried 10 | 4 10 10 10 9 10 4 Average Carried 8 | 1 7 9 9 9 8 2 Final Capacity 10 | 8 10 10 10 10 5 5 Final Carried 10 | 4 10 10 10 9 5 2 Class Distribution -------------------- 63% | Mutant 36% | Tank Dominant Class ---------------- Mutant | -10/Materials Mutant | -9/Materials Tank | -8/Materials Tank | -7/Factory Mutant | -7/Waste Mutant | -7/Factory Resources | -11 -10 -9 -8 -7 -7 -7 ----------- Run | Yrd Mat Mat Mat Fac Was Fac Matter Collected 2223 | 247 115 761 1046 . . 54 Remotely . | . . . . . . . Salvage Created 3612 | . 284 1153 2115 . . 60 Parts 195 | . 22 70 101 . . 2 Haulers Intercepted 11 | . 2 5 4 . . . Recyclers Shooed 4 | . 1 1 2 . . . Parts Field Recycled . | . . . . . . . Retrieved Matter . | . . . . . . . Parts Self-Destructed . | . . . . . . . Prevented . | . . . . . . . Kills | -11 -10 -9 -8 -7 -7 -7 ------- Run | Yrd Mat Mat Mat Fac Was Fac Combat Hostiles Destroyed 66 | . 6 25 34 . . 1 Melee 1 | . . . . . . 1 Guns 40 | . 3 10 27 . . . Cannons 2 | . . . 2 . . . AOE 22 | . 3 15 4 . . . Classes Destroyed 11 | . 5 4 2 . . . Worker 6 | . 1 2 3 . . . Builder 1 | . . . 1 . . . Hauler 11 | . 2 5 4 . . . Recycler 7 | . . 1 6 . . . Operator 2 | . . . 2 . . . Watcher 11 | . 3 4 4 . . . Swarmer 18 | . 3 4 11 . . . Grunt 31 | . 3 13 14 . . 1 Brawler 2 | . . 1 1 . . . Duelist 1 | . . 1 . . . . Sentry 14 | . . 6 8 . . . Best Kill Streak 5 | . 3 5 5 . . 1 Combat Bots Only 5 | . 3 4 5 . . 1 Max Kills in Single Turn 3 | . 3 3 3 . . 1 Gunslinging . | . . . . . . . Exploded 3 | . 1 3 3 . . . Melee 1 | . . . . . . 1 Uniques/NPCs Destroyed . | . . . . . . . Combat | -11 -10 -9 -8 -7 -7 -7 -------- Run | Yrd Mat Mat Mat Fac Was Fac Hostile Shots Fired 388 | . 40 122 138 . 5 83 Missed 88 | . 9 29 28 . . 22 Damage Taken 4330 | . 347 1266 1517 . 245 955 Core 1152 | . 48 138 259 . 200 507 Absorbed by Shields . | . . . . . . . Redirected to Shielding 70 | . . . 70 . . . Regen/Repaired (Parts) 29 | . . . 29 . . . Core Remaining (%) 74 | 100 80 65 52 . . . Volleys Fired 241 | . 49 69 116 . 2 5 Largest 3 | . 2 2 3 . 3 1 Hottest 194 | . 70 126 194 . 94 55 Shots Fired 537 | . 90 130 306 . 6 5 Gun 491 | . 85 114 283 . 4 5 Cannon 23 | . . . 21 . 2 . Launcher 23 | . 5 16 2 . . . Special . | . . . . . . . Kinetic 227 | . 44 23 154 . 6 . Thermal 199 | . . 69 130 . . . Explosive 23 | . 5 16 2 . . . Electromagnetic 88 | . 41 22 20 . . 5 Robot Hit Streak 15 | . 6 14 15 . 3 2 Robot Miss Streak 5 | . 5 4 5 . 3 4 Penetration Max . | . . . . . . . Secondary Targets 3 | . . 1 2 . . . Max Gunslinging Chain 1 | . . 1 1 . . . Shots Hit Robots 322 | . 40 93 181 . 6 2 Core Hits 174 | 2 25 59 79 . 2 7 Critical Kills 2 | . . . 2 . . . Critical Parts Destroyed . | . . . . . . . Critical Strikes 8 | . . 1 7 . . . Burn 5 | . . 1 4 . . . Meltdown 1 | . . . 1 . . . Destroy 1 | . . . 1 . . . Corrupt 1 | . . . 1 . . . Melee Attacks 6 | . . 5 . . 1 . Impact . | . . . . . . . Slashing . | . . . . . . . Piercing . | . . . . . . . Sneak Attacks 5 | . . 5 . . . . Combat Hostiles . | . . . . . . . Follow-up Attacks . | . . . . . . . Damage Inflicted 7588 | 6 1136 2411 3849 . 109 77 Guns 4709 | . 435 1301 2915 . 50 8 Cannons 424 | . . . 365 . 59 . Explosions 2313 | . 673 1106 534 . . . Melee . | . . . . . . . Ramming 142 | 6 28 4 35 . . 69 Kinetic 2045 | . 184 202 1550 . 109 . Thermal 2891 | . 443 914 1534 . . . Explosive 1570 | . 230 954 386 . . . Electromagnetic 940 | . 251 337 344 . . 8 Impact . | . . . . . . . Slashing . | . . . . . . . Piercing . | . . . . . . . Highest Corruption 8 | . . 2 8 . . 7 Average Corruption 7 | . . 2 8 . . 4 Corruption Purged . | . . . . . . . Corruption Blocked . | . . . . . . . Effects 57 | . . 2 53 . . 2 Message Errors 17 | . . 1 16 . . . Matter Fused 13 | . . . 12 . . 1 Heat Flow Errors 5 | . . 1 4 . . . Energy Discharges 5 | . . . 5 . . . Parts Rejected 2 | . . . 1 . . 1 Data Loss (minor) 7 | . . . 7 . . . Data Loss (major) 5 | . . . 5 . . . Misfires 1 | . . . 1 . . . Weapon Failures 2 | . . . 2 . . . Overload Shots . | . . . . . . . Overflow Damage 144 | . 34 9 101 . . . Projectiles 13 | . . . 13 . . . Explosions 131 | . 34 9 88 . . . Melee . | . . . . . . . Knockbacks 3 | . 1 . . . . 2 Impact 3 | . 1 . . . . 2 Kinetic . | . . . . . . . Secondary . | . . . . . . . Self-Inflicted Damage 201 | . 6 52 114 . . 29 Shots 5 | . 1 2 2 . . . Rammed 19 | . . 1 . . . 18 Targets Rammed 34 | 2 5 1 8 . . 18 Kicked 15 | 2 5 . 8 . . . Crushed . | . . . . . . . Highest Temperature 501 | . 130 338 501 . 18 2 Average Temperature 122 | . 30 88 157 . 13 2 Received Heat Transfer 1383 | . 147 408 594 . . 234 Effects 26 | . . 3 23 . . . Shutdowns 6 | . . . 6 . . . Energy Bleed 2 | . . 1 1 . . . Interference 9 | . . 2 7 . . . Short Circuit 2 | . . . 2 . . . Damage (minor) 1 | . . . 1 . . . Damage (major) 6 | . . . 6 . . . Siege Activations . | . . . . . . . Robots Corrupted 1 | . . . 1 . . . Combat Hostiles 1 | . . . 1 . . . Parts Fried 3 | . 1 1 1 . . . Impact Corruptions . | . . . . . . . Robots Melted 1 | . . . 1 . . . Combat Hostiles . | . . . . . . . Parts Melted 10 | . . 3 7 . . . Heat Transferred 5556 | . 300 1876 3380 . . . Parts Sabotaged . | . . . . . . . Parts Stolen . | . . . . . . . Parts Stripped . | . . . . . . . Power Chain Reactions 6 | . 3 2 1 . . . Alert | -11 -10 -9 -8 -7 -7 -7 ------- Run | Yrd Mat Mat Mat Fac Was Fac Peak Influence 794 | . 218 402 794 332 131 80 Initial 332 | . . 28 135 332 116 60 Average 237 | . 80 221 377 332 107 62 Maximum Alert Level 3 | . 1 2 3 1 . . Low Security (%) 50 | 100 95 50 16 . 100 100 Level 1 37 | . 4 47 50 100 . . Level 2 9 | . . 1 26 . . . Level 3 1 | . . . 5 . . . Level 4 . | . . . . . . . Level 5 . | . . . . . . . High Security . | . . . . . . . Max Security . | . . . . . . . Squads Dispatched 8 | . . 3 4 . . 1 Investigation 2 | . . 2 . . . . Extermination 1 | . . . . . . 1 Reinforcement 4 | . . 1 3 . . . Assault 1 | . . . 1 . . . Garrison . | . . . . . . . Intercept . | . . . . . . . Searches Triggered . | . . . . . . . Construction Impeded 1 | . . . 1 . . . Haulers Reinforced . | . . . . . . . Active Scanning Responses . | . . . . . . . Cargo Convoy Interrupts . | . . . . . . . Stealth | -11 -10 -9 -8 -7 -7 -7 --------- Run | Yrd Mat Mat Mat Fac Was Fac Distress Signals 6 | . . 1 4 . . 1 Communications Jammed . | . . . . . . . Distress Signals . | . . . . . . . Times Spotted 121 | . 16 35 59 . 5 6 Peak Tracking Total 6 | . 3 6 5 . 5 4 Tactical Retreats 3 | . 1 . 2 . . . Traps | -11 -10 -9 -8 -7 -7 -7 ------- Run | Yrd Mat Mat Mat Fac Was Fac Traps Triggered 1 | . . . . 1 . . Indirectly . | . . . . . . . Trap Hack Attempts . | . . . . . . . Triggered . | . . . . . . . Disarmed . | . . . . . . . Reprogrammed . | . . . . . . . Reused . | . . . . . . . Traps Extracted . | . . . . . . . Installed . | . . . . . . . Triggered . | . . . . . . . Machines | -11 -10 -9 -8 -7 -7 -7 ---------- Run | Yrd Mat Mat Mat Fac Was Fac Machines Disabled 8 | . 1 4 3 . . . Max in Single Turn 1 | . 1 1 1 . . . Machines Repaired . | . . . . . . . Machines Dismantled . | . . . . . . . Machines Sabotaged . | . . . . . . . Overloaded Fab Kills . | . . . . . . . Hacking | -11 -10 -9 -8 -7 -7 -7 --------- Run | Yrd Mat Mat Mat Fac Was Fac Machines Accessed 15 | . 1 5 6 . . 3 Terminals 14 | . 1 5 5 . . 3 Fabricators . | . . . . . . . Repair Stations 1 | . . . 1 . . . Recycling Units . | . . . . . . . Scanalyzers . | . . . . . . . Garrison Access . | . . . . . . . Total Hacks 44 | . 1 19 18 . . 6 Successful 24 | . 1 9 11 . . 3 Failed 20 | . . 10 7 . . 3 Catastrophic 1 | . . 1 . . . . Database Lockouts . | . . . . . . . Manual 2 | . 2 . . . . . Terminals 39 | . 1 19 13 . . 6 Fabricators . | . . . . . . . Repair Stations 5 | . . . 5 . . . Recycling Units . | . . . . . . . Scanalyzers . | . . . . . . . Garrison Access . | . . . . . . . Terminal Hacks 21 | . 1 9 8 . . 3 Record 1 | . . . 1 . . . Prototype ID Bank 2 | . . 2 . . . . Open DSF 1 | . . . . . . 1 Branch Access Points 1 | . . . 1 . . . Emergency Access Points 1 | . . . 1 . . . Terminal Index 1 | . . 1 . . . . Alert Level 1 | . . 1 . . . . Unreport Threat 1 | . . 1 . . . . Locate Traps 2 | . . 2 . . . . Dispatch Records 1 | . . . 1 . . . Patrol Status 2 | . . 2 . . . . Transport Status 1 | . . . 1 . . . Hauler Manifests 1 | . . . . . . 1 Registered Components 3 | . 1 . 1 . . 1 Zone Layout 2 | . . . 2 . . . Fabricator Hacks . | . . . . . . . Repair Station Hacks 3 | . . . 3 . . . Scan Component 1 | . . . 1 . . . Repair 1 | . . . 1 . . . Refit 1 | . . . 1 . . . Recycling Unit Hacks . | . . . . . . . Scanalyzer . | . . . . . . . Garrison Access Hacks . | . . . . . . . Unauthorized Hacks . | . . . . . . . Terminals . | . . . . . . . Fabricators . | . . . . . . . Repair Stations . | . . . . . . . Recycling Units . | . . . . . . . Scanalyzers . | . . . . . . . Garrison Access . | . . . . . . . Data Cores Recovered 1 | . . . 1 . . . Used . | . . . . . . . Hacking Detections 14 | . 1 5 5 . . 3 Full Trace Events 2 | . . 2 . . . . Feedback Events . | . . . . . . . Feedback Blocked . | . . . . . . . Robot Schematics Acquired . | . . . . . . . Robots Built . | . . . . . . . Authchips . | . . . . . . . Time . | . . . . . . . Total Robot Build Rating . | . . . . . . . Part Schematics Acquired . | . . . . . . . Parts Built . | . . . . . . . Authchips . | . . . . . . . Time . | . . . . . . . Total Part Build Rating . | . . . . . . . Parts Repaired 1 | . . . 1 . . . Time 38 | . . . 38 . . . Parts Recycled . | . . . . . . . Recycled Matter . | . . . . . . . Retrieved Matter . | . . . . . . . Retrieved Components . | . . . . . . . Parts Scanalyzed . | . . . . . . . Part Schematics Acquired . | . . . . . . . Parts Damaged . | . . . . . . . Bothacking | -11 -10 -9 -8 -7 -7 -7 ------------ Run | Yrd Mat Mat Mat Fac Was Fac Used RIF Installer . | . . . . . . . Robots Hacked 2 | . . 1 . . 1 . Non-combat 1 | . . 1 . . . . Combat 1 | . . . . . 1 . Robot Hacks Applied 2 | . . 1 . . 1 . parse_system 2 | . . 1 . . 1 . Relay Couplers Released . | . . . . . . . Fabnet Peak Effective % . | . . . . . . . Robots Rewired . | . . . . . . . Allies Hacked . | . . . . . . . Hacks Repelled . | . . . . . . . Allies | -11 -10 -9 -8 -7 -7 -7 -------- Run | Yrd Mat Mat Mat Fac Was Fac Total Allies . | . . . . . . . Largest Group . | . . . . . . . Highest-Rated Group . | . . . . . . . Highest-Rated Ally . | . . . . . . . Total Orders . | . . . . . . . Ally Attacks . | . . . . . . . Total Damage . | . . . . . . . Kills . | . . . . . . . Allies Corrupted . | . . . . . . . Allies Melted . | . . . . . . . Intel | -11 -10 -9 -8 -7 -7 -7 ------- Run | Yrd Mat Mat Mat Fac Was Fac Robot Analysis Total . | . . . . . . . Derelict Logs Recovered . | . . . . . . . Drone Launches . | . . . . . . . Drone Recoveries . | . . . . . . . Exploration | -11 -10 -9 -8 -7 -7 -7 ------------- Run | Yrd Mat Mat Mat Fac Was Fac Turns Passed 5723 | 106 905 2030 2009 111 161 401 Spaces Moved 2846 | 78 398 1057 858 60 174 221 Core 107 | 6 . 3 . . 78 20 Treads 1355 | . . 1023 131 . . 201 Legs 1384 | 72 398 31 727 60 96 . Wheels . | . . . . . . . Hover . | . . . . . . . Flight . | . . . . . . . Fastest Speed 50 | 50 120 120 110 186 50 50 Average Speed 162 | 117 177 163 173 186 84 159 Slowest Speed 450 | 120 260 450 360 186 120 170 Overloaded Moves . | . . . . . . . Propulsion Burnouts . | . . . . . . . Robots Hopped . | . . . . . . . Cave-ins Triggered . | . . . . . . . Exploration Rate (%) 39 | 4 54 65 69 2 80 5 Regions Visited 6 Branch Regions . Pre-discovered Areas . | . . . . . . . Known Exits Taken . | . . . . . . . Unknown Exits Taken 4 | 1 1 1 1 . . . Scrap Searched . | . . . . . . . Spaces Dug . | . . . . . . . Terrain Destroyed 228 | . 47 130 51 . . . Melee . | . . . . . . . Projectile . | . . . . . . . AOE 228 | . 47 130 51 . . . Terrain Rammed . | . . . . . . . Walls Destroyed . | . . . . . . . Machines Disabled . | . . . . . . . Actions | -11 -10 -9 -8 -7 -7 -7 --------- Run | Yrd Mat Mat Mat Fac Was Fac Total 3535 | 89 509 1231 1197 61 186 262 Wait 190 | . 30 13 134 . . 13 Move 2842 | 78 397 1056 857 60 173 221 Hop . | . . . . . . . Pick Up 37 | 4 12 10 8 . 3 . Fast Attach 45 | 6 2 16 19 . . 2 Attach 11 | . 1 1 4 1 1 3 Detach 6 | . . . 4 . 2 . Swap 53 | . 8 29 16 . . . Drop 71 | . 5 31 31 . 4 . Fire 241 | . 49 69 116 . 2 5 Melee 6 | . . 5 . . 1 . Ram 14 | . . . . . . 14 Kick 14 | 1 5 . 8 . . . Crush 5 | . . 1 . . . 4 Escape Stasis . | . . . . . . . Rewire . | . . . . . . . Trap . | . . . . . . . Miscellaneous . | . . . . . . . Route ------- -11/Scrapyard -10/Materials (discovered 2 exits: *Mat x2) -9/Materials (discovered 4 exits: *Mat x3 / [*Min]) -8/Materials -7/Factory -7/Waste -7/Factory History --------- Turn | Location | Event 21 | -11/Scrapyard | Discovered new exit (range 15) 107 | -11/Scrapyard | Entered Materials 250 | -10/Materials | Discovered new exit (range 15) 323 | -10/Materials | Build established: Mutant 894 | -10/Materials | Discovered new exit (range 15) 1012 | -10/Materials | Entered another Materials area 1012 | -9/Materials | Evolved 2 slots: Propulsion x1, Utility x1 1926 | -9/Materials | Discovered new exit (range 16) 2051 | -9/Materials | Discovered new exit (range 3) 2569 | -9/Materials | Discovered new exit (range 14) 2953 | -9/Materials | Discovered new exit (range 16) 3042 | -9/Materials | Entered another Materials area 3042 | -8/Materials | Evolved 2 slots: Utility x1, Weapon x1 3837 | -8/Materials | Build established: Tank 4626 | -8/Materials | Repaired VSS Leg 5028 | -8/Materials | Discovered new exit (range 9) 5042 | -8/Materials | First assault squad dispatched 5051 | -8/Materials | Entered Factory 5051 | -7/Factory | Evolved 2 slots: Utility x1, Weapon x1 5162 | -7/Factory | Sucked down chute 5162 | -7/Factory | Entered Waste 5198 | -7/Waste | Spotted C-40 Crusher 5198 | -7/Waste | Spotted C-40 Crusher 5232 | -7/Waste | Spotted C-40 Crusher 5238 | -7/Waste | Spotted C-40 Crusher 5242 | -7/Waste | Crushed by Compactor (1 part destroyed, 1 dropped) 5245 | -7/Waste | Crushed by Compactor (1 part destroyed, 1 dropped) 5273 | -7/Waste | Spotted C-40 Crusher 5276 | -7/Waste | Lost 3 parts (1u2w) 5279 | -7/Waste | Crushed by Compactor (1 part destroyed, 2 dropped) 5282 | -7/Waste | Crushed by Compactor (1 part destroyed, 1 dropped) 5286 | -7/Waste | Spotted C-40 Crusher 5299 | -7/Waste | Crushed by Compactor (1 part destroyed) 5312 | -7/Waste | Discovered new exit (range 13) 5323 | -7/Waste | Entered Factory 5330 | -7/Factory | Lost 3 parts (1p1n1u) 5523 | -7/Factory | Build established: Mutant 5703 | -7/Factory | Core integrity fell below 50% 5713 | -7/Factory | Core integrity fell below 20% 5724 | -7/Factory | Destroyed by P-60 Hacker with Shock Rifle Last Messages --------------- Slammed into P-60 Hacker. Arm. Treads destroyed. Slammed into P-60 Hacker. P-60 Hacker knocked back. Slammed into P-60 Hacker. Slammed into M-28 Smith. Imp. Sensor Array destroyed. Slammed into G-47 Trooper. G-47 Trooper destroyed. [Achievement: Fist Fight] K-01 Serf collects debris. Acquired 54 matter. Acquired Aluminum Leg. System corrupted: Aluminum Leg rejected. K-01 Serf collects debris. Slammed into G-47 Trooper. P-60 Hacker resets G-47 Trooper, system corruption cleaned. Slammed into G-47 Trooper. G-47 Trooper knocked back. Map ----- +----------------------------------------------------+ | ???????????????????????????????????????????##+##+# | | ????????????????????????????????????????????# | | ????????????????????????????????????????????# | | ????????????????????????????????????????????# | | ???????????????????????###+###?############## | | ???????????????????????# #?# """T""" # #### | | ??????????????########## #?# # #??? | | ?????????????? #?# + #??? | | ?????????????? #?# # #?## | | ????????????? #?# # #?# | | ?????????????? ############+### #?# | | ??????????????? ##T ######## ### ### | | ??????????????????????# # | | ??????????????????????# # | | ??????????????????????# # | | ??????????????????????# + | | ??????????????????????# # | | ??????????????????????# # | | ??????????????????????# # | | ??????????????????????# ################### | | ??????????????????????# #?????????????????# | | ??????????????????????# #?????????????????## | | ??????????????????????# tp#??????????????????? | | ??????????????????????# #??????????????????? | | ??????????????????????# #??????????????????? | | ??????????????????????# g@ k #??????????????????? | | ??????????????????????# #??????????????????? | | ??????????????????????# k% #??????????????????? | | ??????????????????????# = #??????????????????? | | ??????????????????????# #??????????????????? | | ??????????????????????# #??????????????????? | | ??????????????????????# #??????????????????? | | ??????????????????????# a #??????????????????? | | ??????????????????????# #??????????????????? | | ??????????????????????+ +??????????????????? | | ??????????????????????# #??????????????????? | | ??????????????????????# #??????????????????? | | ??????????????????????# #??????????????????? | | ??????????????????????# #??????????????????? | | ?????????????????????? ??????????????????? | | ????????????????????? ??????????????????? | | ????????????????????? ??????????????????? | | ?????????????????????? ??????????????????? | | ???????????????????????? ??????????????????? | | ?????????????????????????????????????????????????? | | ?????????????????????????????????????????????????? | | ?????????????????????????????????????????????????? | | ?????????????????????????????????????????????????? | | ?????????????????????????????????????????????????? | | ?????????????????????????????????????????????????? | +----------------------------------------------------+ Best States ------------- Heat Dissipation 48 Energy Generation 14 Energy Capacity 280 Matter Stores 300 Matter Capacity 400 Sight Range 16 Robot Scan Range 15 Terrain Scan Density 10 Armor Coverage 450 Utility Shielding 66 Evasion (%) 55 Recoil Reduction 3 Item Schematics ----------------- None Robot Schematics ------------------ None Fabricated ------------ Nothing Alien Tech Used ----------------- None Achievements -------------- Fist Fight Challenges ------------ None Game ------ Seed MobileContainmentProcessor Manual? 0 Play Time 00:51:33 Cumulative 7.1 hours Start 2024.04.05 @ 11:32:19 End 2024.04.05 @ 13:35:23 Sessions 1 Manual Loads 0 Difficulty Rogue Special Mode None Game No. 7 Rogue 7 Adventurer 0 Explorer 0 Win Type - Total 0 Types 0/0/0/0/0/0/0/0/0 Lore% 5 Gallery% 16 Achievement% 15 Wizard Run 0 Options --------- Layout 1 ASCII 0 Keyboard 1 Movement Arrows Keybinds 0 Fullscreen 1 Font 24/Smallcaps Map View 50x35 Zoom Use 0% Tactical HUD 0 Map Filters NONE Filters NONE Steam 1 RUN: a5e6b1c8-746f-4c2e-bbf7-be99cd512127